[Event "Championnat d'Europe de Blitz"]
[Date "2024.12.09"]
[White "Saraci, Nderim"]
[Black "Zhukovskyi, Myhaylo"]
[WhiteElo "2431"]
[BlackElo "2189"]
[Round "3.35"]
[Result "1/2-1/2"]
[TimeControl "180+2"]

1. Nf3 {[%emt 00:00:02] [%clk 00:03:02]} Nf6 {[%clk 00:03:04]} 2. b3 {[%emt
00:00:01] [%clk 00:03:03]} d5 {[%emt 00:00:01] [%clk 00:03:04]} 3. Bb2 {[%emt
00:00:01] [%clk 00:03:03]} e6 {[%emt 00:00:02] [%clk 00:03:05]} 4. c4 {[%emt
00:00:02] [%clk 00:03:03]} dxc4 {[%emt 00:00:04] [%clk 00:03:03]} 5. bxc4 {[%emt
00:00:01] [%clk 00:03:04]} c5 {[%emt 00:00:01] [%clk 00:03:04]} 6. g3 {[%emt
00:00:01] [%clk 00:03:04]} Nc6 {[%emt 00:00:01] [%clk 00:03:06]} 7. Bg2 {[%emt
00:00:01] [%clk 00:03:04]} Be7 {[%emt 00:00:01] [%clk 00:03:07]} 8. O-O {[%emt
00:00:03] [%clk 00:03:03]} O-O {[%emt 00:00:02] [%clk 00:03:07]} 9. d3 {[%emt
00:00:03] [%clk 00:03:02]} Rb8 {[%emt 00:00:07] [%clk 00:03:03]} 10. Nbd2 {[%emt
00:00:02] [%clk 00:03:01]} b6 {[%emt 00:00:01] [%clk 00:03:04]} 11. Ne5 {[%emt
00:00:10] [%clk 00:02:53]} Nxe5 {[%emt 00:00:03] [%clk 00:03:03]} 12. Bxe5
{[%emt 00:00:02] [%clk 00:02:53]} Bd6 {[%emt 00:00:02] [%clk 00:03:04]} 13. Bc3
{[%emt 00:00:07] [%clk 00:02:47]} Bb7 {[%emt 00:00:02] [%clk 00:03:05]} 14. Nf3
{[%emt 00:00:12] [%clk 00:02:36]} Qc7 {[%emt 00:00:03] [%clk 00:03:05]} 15. Bxf6
{[%emt 00:00:09] [%clk 00:02:28]} gxf6 {[%emt 00:00:02] [%clk 00:03:06]} 16. a4
{[%emt 00:00:02] [%clk 00:02:28]} Bxf3 {[%emt 00:00:08] [%clk 00:03:00]} 17.
Bxf3 {[%emt 00:00:02] [%clk 00:02:28]} Be5 {[%emt 00:00:02] [%clk 00:03:00]} 18.
Ra2 {[%emt 00:00:03] [%clk 00:02:26]} f5 {[%emt 00:00:01] [%clk 00:03:01]} 19.
a5 {[%emt 00:00:10] [%clk 00:02:19]} b5 {[%emt 00:00:22] [%clk 00:02:42]} 20.
cxb5 {[%emt 00:00:03] [%clk 00:02:18]} Rxb5 {[%emt 00:00:01] [%clk 00:02:43]}
21. a6 {[%emt 00:00:06] [%clk 00:02:13]} Ra5 {[%emt 00:00:08] [%clk 00:02:37]}
22. Rxa5 {[%emt 00:00:05] [%clk 00:02:10]} Qxa5 {[%emt 00:00:02] [%clk
00:02:38]} 23. Bb7 {[%emt 00:00:01] [%clk 00:02:11]} Rd8 {[%emt 00:00:04] [%clk
00:02:36]} 24. Qc1 {[%emt 00:00:02] [%clk 00:02:10]} Bf6 {[%emt 00:00:07] [%clk
00:02:31]} 25. Qe3 {[%emt 00:00:03] [%clk 00:02:09]} Qc3 {[%emt 00:00:13] [%clk
00:02:20]} 26. Rc1 {[%emt 00:00:03] [%clk 00:02:07]} Qd4 {[%emt 00:00:08] [%clk
00:02:15]} 27. Rxc5 {[%emt 00:00:05] [%clk 00:02:04]} Qxe3 {[%emt 00:00:28]
[%clk 00:01:49]} 28. fxe3 {[%emt 00:00:02] [%clk 00:02:03]} Rd7 {[%emt 00:00:03]
[%clk 00:01:49]} 29. Kf2 {[%emt 00:00:03] [%clk 00:02:02]} Kf8 {[%emt 00:00:10]
[%clk 00:01:41]} 30. Rc8+ {[%emt 00:00:06] [%clk 00:01:58]} Rd8 {[%emt 00:00:01]
[%clk 00:01:43]} 31. Rc7 {[%emt 00:00:05] [%clk 00:01:54]} Be5 {[%emt 00:00:02]
[%clk 00:01:43]} 32. Rc4 {[%emt 00:00:01] [%clk 00:01:54]} Ke7 {[%emt 00:00:04]
[%clk 00:01:41]} 33. Rh4 {[%emt 00:00:06] [%clk 00:01:50]} Rh8 {[%emt 00:00:03]
[%clk 00:01:40]} 34. Bf3 {[%emt 00:00:03] [%clk 00:01:49]} h6 {[%emt 00:00:05]
[%clk 00:01:38]} 35. Rb4 {[%emt 00:00:13] [%clk 00:01:37]} Rb8 {[%emt 00:00:02]
[%clk 00:01:38]} 36. Bb7 {[%emt 00:00:02] [%clk 00:01:37]} Rh8 {[%emt 00:00:03]
[%clk 00:01:37]} 37. h3 {[%emt 00:00:04] [%clk 00:01:35]} Rg8 {[%emt 00:00:02]
[%clk 00:01:37]} 38. g4 {[%emt 00:00:03] [%clk 00:01:33]} fxg4 {[%emt 00:00:02]
[%clk 00:01:38]} 39. hxg4 {[%emt 00:00:01] [%clk 00:01:34]} Bd6 {[%emt 00:00:06]
[%clk 00:01:34]} 40. Rc4 {[%emt 00:00:04] [%clk 00:01:31]} Rg5 {[%emt 00:00:08]
[%clk 00:01:28]} 41. Kf3 {[%emt 00:00:19] [%clk 00:01:13]} Rc5 {[%emt 00:00:06]
[%clk 00:01:24]} 42. Ra4 {[%emt 00:00:04] [%clk 00:01:12]} h5 {[%emt 00:00:02]
[%clk 00:01:25]} 43. gxh5 {[%emt 00:00:08] [%clk 00:01:06]} Rxh5 {[%emt
00:00:03]} 44. Rg4 {[%emt 00:00:03] [%clk 00:01:02]} Rh3+ {[%emt 00:00:03] [%clk
00:01:26]} 45. Kf2 {[%emt 00:00:02] [%clk 00:01:01]} Rh2+ {[%emt 00:00:08] [%clk
00:01:21]} 46. Bg2 {[%emt 00:00:04] [%clk 00:00:59]} Rh8 {[%clk 00:01:22]} 47.
d4 {[%emt 00:00:05] [%clk 00:00:56]} Rb8 {[%emt 00:00:13] [%clk 00:01:10]} 48.
Bb7 {[%emt 00:00:02] [%clk 00:00:57]} Rh8 {[%emt 00:00:01] [%clk 00:01:11]} 49.
e4 {[%emt 00:00:03] [%clk 00:00:55]} Rh2+ {[%emt 00:00:12] [%clk 00:01:01]} 50.
Ke3 {[%emt 00:00:04] [%clk 00:00:53]} e5 {[%emt 00:00:03] [%clk 00:01:01]} 51.
d5 {[%emt 00:00:06] [%clk 00:00:49]} Rh3+ {[%emt 00:00:05] [%clk 00:00:58]} 52.
Kd2 {[%emt 00:00:04] [%clk 00:00:46]} Bb4+ {[%emt 00:00:02] [%clk 00:00:58]} 53.
Kd1 {[%emt 00:00:02] [%clk 00:00:45]} Rh1+ {[%emt 00:00:03] [%clk 00:00:58]} 54.
Kc2 {[%emt 00:00:01] [%clk 00:00:46]} Rh2 {[%emt 00:00:02] [%clk 00:00:58]} 55.
Kd3 {[%emt 00:00:03] [%clk 00:00:45]} Rh3+ {[%emt 00:00:04] [%clk 00:00:57]} 56.
Kc4 {[%emt 00:00:01] [%clk 00:00:45]} Bd6 {[%emt 00:00:06] [%clk 00:00:53]} 57.
Bc6 {[%emt 00:00:37] [%clk 00:00:09]} Re3 {[%emt 00:00:04] [%clk 00:00:52]} 58.
Rh4 {[%emt 00:00:02] [%clk 00:00:08]} Rxe2 {[%emt 00:00:03] [%clk 00:00:53]} 59.
Kd3 {[%clk 00:00:09]} Ra2 {[%emt 00:00:02] [%clk 00:00:52]} 60. Bb7 {[%emt
00:00:04] [%clk 00:00:07]} Ra3+ {[%emt 00:00:01] [%clk 00:00:53]} 61. Kc2 {[%emt
00:00:01] [%clk 00:00:08]} Ra2+ {[%emt 00:00:02] [%clk 00:00:53]} 62. Kb3 {[%emt
00:00:01] [%clk 00:00:09]} Re2 {[%emt 00:00:01] [%clk 00:00:54]} 63. Kc3 {[%emt
00:00:02] [%clk 00:00:09]} Re3+ {[%emt 00:00:02] [%clk 00:00:54]} 64. Kd2 {[%emt
00:00:02] [%clk 00:00:09]} Ra3 {[%emt 00:00:10] [%clk 00:00:46]} 65. Rh8 {[%emt
00:00:01] [%clk 00:00:09]} Ra4 {[%emt 00:00:09] [%clk 00:00:40]} 66. Kd3 {[%emt
00:00:01] [%clk 00:00:10]} Rd4+ {[%emt 00:00:08] [%clk 00:00:34]} 67. Ke3 {[%clk
00:00:11]} Bc5 {[%emt 00:00:05] [%clk 00:00:32]} 68. Kf3 {[%clk 00:00:12]} Rd3+
{[%emt 00:00:01] [%clk 00:00:33]} 69. Kg2 {[%emt 00:00:03] [%clk 00:00:11]} Rd2+
{[%emt 00:00:01] [%clk 00:00:34]} 70. Kg3 {[%emt 00:00:04] [%clk 00:00:08]} Rd3+
{[%emt 00:00:03] [%clk 00:00:33]} 71. Kg4 {[%emt 00:00:01] [%clk 00:00:09]} Re3
{[%emt 00:00:01] [%clk 00:00:33]} 72. Kf5 {[%emt 00:00:05] [%clk 00:00:06]} Rf3+
{[%emt 00:00:01] [%clk 00:00:34]} 73. Kg4 {[%emt 00:00:03] [%clk 00:00:05]} Re3
{[%emt 00:00:01] [%clk 00:00:35]} 74. Kf5 {[%emt 00:00:04] [%clk 00:00:03]} Rf3+
{[%clk 00:00:36]} 75. Kg4 {[%emt 00:00:01] [%clk 00:00:04]} Re3 {[%clk
00:00:37]} 76. d6+ {[%emt 00:00:03]} Kxd6 {[%emt 00:00:06] [%clk 00:00:32]} 77.
Rd8+ {[%emt 00:00:01] [%clk 00:00:04]} Ke7 {[%emt 00:00:02] [%clk 00:00:32]} 78.
Rc8 {[%emt 00:00:01] [%clk 00:00:05]} Bd4 {[%emt 00:00:01] [%clk 00:00:33]} 79.
Bd5 {[%emt 00:00:01] [%clk 00:00:06]} Rc3 {[%emt 00:00:05] [%clk 00:00:30]} 80.
Rh8 {[%emt 00:00:03] [%clk 00:00:05]} Kf6 {[%emt 00:00:03] [%clk 00:00:30]} 81.
Rh7 {[%emt 00:00:02] [%clk 00:00:05]} Rc7 {[%emt 00:00:02] [%clk 00:00:30]} 82.
Rh6+ {[%emt 00:00:02] [%clk 00:00:05]} Kg7 {[%emt 00:00:03] [%clk 00:00:30]} 83.
Rd6 {[%emt 00:00:01] [%clk 00:00:06]} Kf8 {[%emt 00:00:11] [%clk 00:00:20]} 84.
Kf5 {[%emt 00:00:01] [%clk 00:00:07]} Ke7 {[%emt 00:00:01] [%clk 00:00:21]} 85.
Rf6 {[%emt 00:00:01] [%clk 00:00:07]} Ke8 {[%emt 00:00:02] [%clk 00:00:22]} 86.
Bc6+ {[%emt 00:00:02] [%clk 00:00:07]} Ke7 {[%emt 00:00:01] [%clk 00:00:23]} 87.
Rh6 {[%clk 00:00:08]} Rc8 {[%emt 00:00:02] [%clk 00:00:23]} 88. Bd5 {[%emt
00:00:02] [%clk 00:00:08]} Rc7 {[%emt 00:00:10] [%clk 00:00:14]} 89. Rh7 {[%emt
00:00:01] [%clk 00:00:08]} Kd6 {[%emt 00:00:04] [%clk 00:00:12]} 90. Bxf7 {[%emt
00:00:05] [%clk 00:00:05]} Kc5 {[%emt 00:00:01] [%clk 00:00:13]} 91. Bg6 {[%emt
00:00:03] [%clk 00:00:04]} Rxh7 {[%emt 00:00:01] [%clk 00:00:14]} 92. Bxh7
{[%clk 00:00:05]} Kb6 {[%emt 00:00:01] [%clk 00:00:15]} 93. Kg4 {[%emt 00:00:01]
[%clk 00:00:06]} Kxa6 {[%emt 00:00:01] [%clk 00:00:16]} 94. Kf3 {[%clk
00:00:07]} Kb5 {[%clk 00:00:17]} 95. Ke2 {[%emt 00:00:02] [%clk 00:00:07]} Kb4
{[%emt 00:00:07] [%clk 00:00:12]} 96. Kd2 {[%emt 00:00:02] [%clk 00:00:08]} Kb3
{[%emt 00:00:08] [%clk 00:00:06]} 97. Kc1 {[%emt 00:00:02] [%clk 00:00:07]} a5
{[%emt 00:00:01] [%clk 00:00:07]} 98. Kb1 {[%clk 00:00:08]} a4 {[%emt 00:00:02]
[%clk 00:00:08]} 99. Bg8+ {[%clk 00:00:08]} Kc3 {[%emt 00:00:02] [%clk
00:00:08]} 100. Ka2 {[%emt 00:00:01] [%clk 00:00:09]} Kb4 {[%emt 00:00:03] [%clk
00:00:07]} 101. Bh7 {[%emt 00:00:01] [%clk 00:00:10]} 1/2-1/2

[Site "Europe Echecs"]

[Event "Championnat d'Europe de Blitz"]
[Date "2024.12.09"]
[White "Vyval, Volodymyr"]
[Black "Paichadze, Luka"]
[WhiteElo "2269"]
[BlackElo "2532"]
[Round "3.36"]
[Result "1-0"]
[TimeControl "180+2"]

1. e4 {[%emt 00:06:43] [%clk 00:03:03]} c6 {[%clk 00:03:03]} 2. d4 {[%emt
00:00:01] [%clk 00:03:04]} d5 {[%clk 00:03:04]} 3. e5 {[%emt 00:00:02] [%clk
00:03:05]} Bf5 {[%emt 00:00:01] [%clk 00:03:05]} 4. Nd2 {[%clk 00:03:06]} e6
{[%emt 00:00:06] [%clk 00:03:02]} 5. Nb3 {[%clk 00:03:07]} Nd7 {[%emt 00:00:01]
[%clk 00:03:02]} 6. Nf3 {[%clk 00:03:08]} a6 {[%emt 00:00:07] [%clk 00:02:58]}
7. Be2 {[%emt 00:00:02] [%clk 00:03:07]} c5 {[%clk 00:03:00]} 8. dxc5 {[%emt
00:00:02] [%clk 00:03:07]} Nxc5 {[%emt 00:00:02] [%clk 00:03:00]} 9. Nfd4 {[%emt
00:00:05] [%clk 00:03:04]} Bg6 {[%emt 00:00:05] [%clk 00:02:57]} 10. O-O {[%emt
00:00:03] [%clk 00:03:03]} Nd7 {[%emt 00:00:01] [%clk 00:02:58]} 11. f4 {[%emt
00:00:02] [%clk 00:03:02]} Ne7 {[%emt 00:00:01] [%clk 00:02:59]} 12. Be3 {[%emt
00:00:12] [%clk 00:02:52]} Rc8 {[%emt 00:00:09] [%clk 00:02:53]} 13. c3 {[%emt
00:00:02] [%clk 00:02:53]} Nf5 {[%emt 00:00:06] [%clk 00:02:48]} 14. Nxf5 {[%emt
00:00:05] [%clk 00:02:50]} Bxf5 {[%emt 00:00:01] [%clk 00:02:49]} 15. Nd4 {[%emt
00:00:02] [%clk 00:02:49]} Be4 {[%emt 00:00:02] [%clk 00:02:50]} 16. Bd3 {[%emt
00:00:03] [%clk 00:02:48]} Bxd3 {[%emt 00:00:04] [%clk 00:02:48]} 17. Qxd3
{[%emt 00:00:01] [%clk 00:02:49]} g6 {[%emt 00:00:02] [%clk 00:02:48]} 18. Rae1
{[%emt 00:00:05] [%clk 00:02:45]} Nc5 {[%emt 00:00:09] [%clk 00:02:42]} 19. Qe2
{[%emt 00:00:07] [%clk 00:02:40]} Ne4 {[%emt 00:00:02] [%clk 00:02:43]} 20. Nf3
{[%emt 00:00:07] [%clk 00:02:35]} Be7 {[%emt 00:00:05] [%clk 00:02:40]} 21. Nd2
{[%emt 00:00:04] [%clk 00:02:33]} Nxd2 {[%emt 00:00:02] [%clk 00:02:40]} 22.
Qxd2 {[%emt 00:00:04] [%clk 00:02:31]} O-O {[%emt 00:00:03] [%clk 00:02:39]} 23.
g4 {[%emt 00:00:10] [%clk 00:02:23]} Rc4 {[%emt 00:00:05] [%clk 00:02:37]} 24.
Bd4 {[%emt 00:00:05] [%clk 00:02:19]} Bc5 {[%emt 00:00:04] [%clk 00:02:35]} 25.
b3 {[%emt 00:00:06] [%clk 00:02:14]} Bxd4+ {[%emt 00:00:02] [%clk 00:02:36]} 26.
cxd4 {[%emt 00:00:02] [%clk 00:02:14]} Rc6 {[%emt 00:00:01] [%clk 00:02:36]} 27.
f5 {[%emt 00:01:04] [%clk 00:01:12]} exf5 {[%emt 00:00:12] [%clk 00:02:26]} 28.
gxf5 {[%emt 00:00:04] [%clk 00:01:10]} gxf5 {[%emt 00:00:01] [%clk 00:02:27]}
29. Rxf5 {[%emt 00:00:09] [%clk 00:01:03]} Rg6+ {[%emt 00:00:04] [%clk
00:02:25]} 30. Kh1 {[%emt 00:00:02] [%clk 00:01:02]} Qh4 {[%emt 00:00:02] [%clk
00:02:26]} 31. Qf2 {[%emt 00:00:09] [%clk 00:00:55]} Qg4 {[%emt 00:01:06] [%clk
00:01:21]} 32. e6 {[%emt 00:00:05] [%clk 00:00:53]} Kh8 {[%emt 00:00:46] [%clk
00:00:38]} 33. e7 {[%emt 00:00:08] [%clk 00:00:47]} Re8 {[%emt 00:00:13] [%clk
00:00:27]} 34. Rxf7 {[%emt 00:00:02] [%clk 00:00:46]} Qg5 {[%emt 00:00:08] [%clk
00:00:21]} 35. Rf8+ {[%emt 00:00:03] [%clk 00:00:45]} Rg8 {[%clk 00:00:23]} 36.
Rxe8 {[%emt 00:00:22] [%clk 00:00:25]} Rxe8 {[%emt 00:00:01] [%clk 00:00:24]}
37. Qf8+ {[%emt 00:00:02] [%clk 00:00:24]} Qg8 {[%emt 00:00:01] [%clk 00:00:25]}
38. Rf1 {[%emt 00:00:10] [%clk 00:00:17]} b5 {[%emt 00:00:17] [%clk 00:00:10]}
39. Qxe8 {[%emt 00:00:02] [%clk 00:00:16]} 1-0

[Site "Europe Echecs"]

[Event "Championnat d'Europe de Blitz"]
[Date "2024.12.09"]
[White "Bernadskiy, Vitaliy"]
[Black "Veljanoski, Andrej"]
[WhiteElo "2546"]
[BlackElo "2304"]
[Round "3.37"]
[Result "1-0"]
[TimeControl "180+2"]

1. d4 {[%clk 00:03:03]} d5 {[%emt 00:00:01] [%clk 00:03:03]} 2. Nf3 {[%emt
00:00:03] [%clk 00:03:03]} Nf6 {[%clk 00:03:04]} 3. Bf4 {[%emt 00:00:01] [%clk
00:03:04]} c5 {[%emt 00:00:01] [%clk 00:03:05]} 4. e3 {[%emt 00:00:01] [%clk
00:03:05]} Nc6 {[%clk 00:03:06]} 5. Nbd2 {[%emt 00:00:15] [%clk 00:02:52]} cxd4
{[%emt 00:00:02] [%clk 00:03:06]} 6. exd4 {[%emt 00:00:02] [%clk 00:02:52]} Bf5
{[%emt 00:00:02] [%clk 00:03:06]} 7. c3 {[%emt 00:00:04] [%clk 00:02:51]} e6
{[%emt 00:00:01] [%clk 00:03:07]} 8. Qb3 {[%emt 00:00:10] [%clk 00:02:43]} Qb6
{[%emt 00:00:19] [%clk 00:02:49]} 9. Qxb6 {[%emt 00:00:14] [%clk 00:02:31]} axb6
{[%emt 00:00:01] [%clk 00:02:50]} 10. Bb5 {[%emt 00:00:06] [%clk 00:02:26]} Nd7
{[%emt 00:00:37] [%clk 00:02:15]} 11. Nh4 {[%emt 00:00:15] [%clk 00:02:13]} Bg6
{[%emt 00:00:20] [%clk 00:01:57]} 12. Nxg6 {[%emt 00:00:03] [%clk 00:02:12]}
hxg6 {[%clk 00:01:58]} 13. O-O {[%emt 00:00:10] [%clk 00:02:05]} Be7 {[%emt
00:00:09] [%clk 00:01:51]} 14. Nf3 {[%emt 00:00:08] [%clk 00:02:00]} O-O {[%emt
00:00:04] [%clk 00:01:47]} 15. Rfe1 {[%emt 00:00:02] [%clk 00:02:00]} Rfc8
{[%emt 00:00:35] [%clk 00:01:14]} 16. h4 {[%emt 00:00:03] [%clk 00:01:59]} Nf6
{[%emt 00:00:03] [%clk 00:01:14]} 17. Ng5 {[%emt 00:00:07] [%clk 00:01:54]} Na5
{[%emt 00:00:12] [%clk 00:01:04]} 18. a4 {[%emt 00:00:54] [%clk 00:01:02]} Nc4
{[%emt 00:00:08] [%clk 00:00:58]} 19. Re2 {[%emt 00:00:01] [%clk 00:01:03]} Nd6
{[%emt 00:00:24] [%clk 00:00:35]} 20. Bd3 {[%emt 00:00:01] [%clk 00:01:03]} Nh5
{[%emt 00:00:04] [%clk 00:00:33]} 21. Bh2 {[%emt 00:00:13] [%clk 00:00:52]} Nf6
{[%emt 00:00:18] [%clk 00:00:18]} 22. Ree1 {[%emt 00:00:20] [%clk 00:00:33]} Nc4
{[%emt 00:00:04] [%clk 00:00:17]} 23. Rab1 {[%emt 00:00:14] [%clk 00:00:21]} Nd2
{[%emt 00:00:06] [%clk 00:00:13]} 24. Rbd1 {[%emt 00:00:01] [%clk 00:00:21]} Nc4
{[%emt 00:00:05]} 25. Re2 Nd6 {[%emt 00:00:03] [%clk 00:00:12]} 26. Bxd6 {[%emt
00:00:10] [%clk 00:00:13]} Bxd6 {[%clk 00:00:13]} 27. Bb5 {[%emt 00:00:01] [%clk
00:00:14]} Bf4 {[%emt 00:00:06] [%clk 00:00:09]} 28. Nf3 {[%emt 00:00:02] [%clk
00:00:13]} Bd6 {[%emt 00:00:02] [%clk 00:00:09]} 29. g3 {[%emt 00:00:04] [%clk
00:00:11]} Be7 {[%emt 00:00:05] [%clk 00:00:07]} 30. Ne5 {[%emt 00:00:02] [%clk
00:00:11]} Ne4 {[%emt 00:00:05] [%clk 00:00:04]} 31. Nd7 {[%emt 00:00:02] [%clk
00:00:11]} Bd8 {[%emt 00:00:01] [%clk 00:00:05]} 32. c4 {[%emt 00:00:05] [%clk
00:00:09]} Nd6 {[%emt 00:00:02] [%clk 00:00:05]} 33. cxd5 {[%emt 00:00:02] [%clk
00:00:09]} Nxb5 {[%emt 00:00:02] [%clk 00:00:05]} 34. axb5 {[%emt 00:00:03]
[%clk 00:00:08]} exd5 {[%emt 00:00:01] [%clk 00:00:06]} 35. Re8+ {[%emt
00:00:01] [%clk 00:00:09]} Kh7 {[%clk 00:00:07]} 36. Nf8+ {[%clk 00:00:10]} Kh6
{[%clk 00:00:09]} 37. Nd7 {[%emt 00:00:07] [%clk 00:00:04]} Bf6 {[%emt 00:00:05]
[%clk 00:00:05]} 38. Rxc8 {[%emt 00:00:03] [%clk 00:00:04]} Rxc8 {[%clk
00:00:06]} 39. Nxb6 {[%emt 00:00:01] [%clk 00:00:05]} Rc2 {[%emt 00:00:03] [%clk
00:00:04]} 40. Nxd5 {[%emt 00:00:03] [%clk 00:00:05]} Bd8 {[%emt 00:00:02] [%clk
00:00:04]} 41. Re1 {[%emt 00:00:02] [%clk 00:00:05]} Rxb2 {[%emt 00:00:02] [%clk
00:00:04]} 42. Re8 {[%clk 00:00:06]} Rxb5 {[%emt 00:00:02] [%clk 00:00:05]} 43.
Rh8# {[%clk 00:00:03]} 1-0

[Site "Europe Echecs"]

[Event "Championnat d'Europe de Blitz"]
[Date "2024.12.09"]
[White "Pancevski, Filip"]
[Black "Kiratzopoulos, Efthimios"]
[WhiteElo "2420"]
[BlackElo "2193"]
[Round "3.38"]
[Result "1-0"]
[TimeControl "180+2"]

1. e4 {[%emt 00:00:01] [%clk 00:03:03]} d6 {[%emt 00:00:03] [%clk 00:03:03]} 2.
d4 {[%clk 00:03:03]} g6 {[%clk 00:03:04]} 3. Nc3 {[%emt 00:00:03] [%clk
00:03:03]} Bg7 {[%clk 00:03:05]} 4. Be3 {[%emt 00:00:03] [%clk 00:03:02]} c6
{[%emt 00:00:03] [%clk 00:03:04]} 5. a4 {[%emt 00:00:01] [%clk 00:03:02]} Nf6
{[%emt 00:00:09] [%clk 00:02:56]} 6. h3 {[%emt 00:00:01] [%clk 00:03:03]} O-O
{[%emt 00:00:03] [%clk 00:02:55]} 7. g4 {[%emt 00:00:01] [%clk 00:03:04]} Nfd7
{[%emt 00:00:35] [%clk 00:02:22]} 8. Bg2 {[%emt 00:00:03] [%clk 00:03:03]} Nb6
{[%emt 00:00:17] [%clk 00:02:07]} 9. Nge2 {[%emt 00:00:17] [%clk 00:02:47]} f5
{[%emt 00:00:08] [%clk 00:02:01]} 10. gxf5 {[%emt 00:00:26] [%clk 00:02:24]}
gxf5 {[%emt 00:00:01] [%clk 00:02:02]} 11. Qd3 {[%emt 00:00:05] [%clk 00:02:21]}
Be6 {[%emt 00:00:40] [%clk 00:01:23]} 12. b3 {[%emt 00:00:03] [%clk 00:02:20]}
Na6 {[%emt 00:00:17] [%clk 00:01:09]} 13. a5 {[%emt 00:00:42] [%clk 00:01:40]}
Nd7 {[%emt 00:00:20] [%clk 00:00:50]} 14. Rg1 {[%clk 00:01:40]} Kh8 {[%emt
00:00:05] [%clk 00:00:48]} 15. Qd2 {[%emt 00:00:13] [%clk 00:01:29]} Nf6 {[%emt
00:00:08] [%clk 00:00:42]} 16. e5 {[%emt 00:00:11] [%clk 00:01:20]} dxe5 {[%emt
00:00:01] [%clk 00:00:43]} 17. dxe5 {[%emt 00:00:01] [%clk 00:01:21]} Nd5 {[%emt
00:00:06] [%clk 00:00:39]} 18. Bxd5 {[%emt 00:00:24] [%clk 00:00:59]} Bxd5
{[%emt 00:00:02] [%clk 00:00:40]} 19. Nxd5 {[%emt 00:00:29] [%clk 00:00:32]}
Qxd5 {[%emt 00:00:01] [%clk 00:00:40]} 20. Qxd5 {[%emt 00:00:05] [%clk
00:00:29]} cxd5 {[%emt 00:00:01] [%clk 00:00:42]} 21. f4 {[%clk 00:00:30]} Nb4
{[%emt 00:00:01] [%clk 00:00:43]} 22. Kd2 {[%emt 00:00:05] [%clk 00:00:27]} Rfc8
{[%emt 00:00:03] [%clk 00:00:41]} 23. Nd4 {[%emt 00:00:05] [%clk 00:00:24]} Nc6
{[%emt 00:00:31] [%clk 00:00:13]} 24. Nxf5 {[%emt 00:00:01] [%clk 00:00:24]} Bf8
{[%emt 00:00:02] [%clk 00:00:12]} 25. e6 {[%emt 00:00:09] [%clk 00:00:17]} Rd8
{[%emt 00:00:04] [%clk 00:00:10]} 26. c3 {[%emt 00:00:09] [%clk 00:00:11]} d4
{[%emt 00:00:01] [%clk 00:00:10]} 27. Bxd4+ {[%emt 00:00:06] [%clk 00:00:07]}
Nxd4 {[%clk 00:00:11]} 28. cxd4 {[%emt 00:00:01] [%clk 00:00:08]} Rd5 {[%emt
00:00:01] [%clk 00:00:12]} 29. Rg5 {[%clk 00:00:09]} Bh6 {[%emt 00:00:11] [%clk
00:00:03]} 30. Nxh6 {[%emt 00:00:04] [%clk 00:00:08]} Rxd4+ {[%clk 00:00:04]}
31. Ke3 {[%clk 00:00:09]} Rad8 {[%clk 00:00:06]} 32. Nf7# {[%emt 00:00:01] [%clk
00:00:00]} 1-0

[Site "Europe Echecs"]